﻿Department family,Entity,Date,Expense type,Expense area,Supplier,Transaction number,Amount,Description,Supplier Postcode
Balance Sheet,Fixed Assets,17/02/2023,Additions - Assets Under Construction,Capital (His),Agfa HealthCare IT UK Ltd,9820000289,"49,186.92 ",AGFA Healthcare: Main offer standard echo package,UB11 1FW
Balance Sheet,L2 Current Assets,08/02/2023,Finished Processed Goods,Stock & Work In Progress,Alliance Healthcare Distribution Ltd,F2C659540,"53,987.90 ",Pharmaceutical purchase,KT9 1SN
Balance Sheet,L2 Current Assets,08/02/2023,Finished Processed Goods,Stock & Work In Progress,Alliance Healthcare Distribution Ltd,F31950673,"53,967.84 ",Pharmaceutical purchase,KT9 1SN
Balance Sheet,L2 Current Assets,10/02/2023,Finished Processed Goods,Stock & Work In Progress,Alliance Healthcare Distribution Ltd,F31C51379,"40,998.52 ",Pharmaceutical purchase,KT9 1SN
Balance Sheet,L2 Current Assets,17/02/2023,Finished Processed Goods,Stock & Work In Progress,Alliance Healthcare Distribution Ltd,F31K53205,"40,478.40 ",Pharmaceutical purchase,KT9 1SN
Balance Sheet,L2 Current Assets,01/03/2023,Finished Processed Goods,Stock & Work In Progress,Alliance Healthcare Distribution Ltd,F31V51306,"40,991.47 ",Pharmaceutical purchase,KT9 1SN
CHS Estates,L2 Estates,17/02/2023,Contract : Other External,Medical Physics,B Braun Sterilog (Yorkshire) Ltd,328746883,"167,706.42 ",Decontamination Services for Surgical & Podiatry,S35 2PW
Balance Sheet,L2 Current Assets,10/02/2023,Finished Processed Goods,Stock & Work In Progress,Bayer Plc,824C466424,"27,373.68 ",Pharmaceutical purchase,RG2 6AD
Balance Sheet,L2 Current Assets,10/02/2023,Finished Processed Goods,Stock & Work In Progress,Bayer Plc,824C467435,"114,057.00 ",Pharmaceutical purchase,RG2 6AD
Balance Sheet,L2 Current Assets,15/02/2023,Finished Processed Goods,Stock & Work In Progress,Bayer Plc,824C468556,"27,373.68 ",Pharmaceutical purchase,RG2 6AD
Balance Sheet,L2 Current Assets,24/02/2023,Finished Processed Goods,Stock & Work In Progress,Bayer Plc,824C470011,"27,373.68 ",Pharmaceutical purchase,RG2 6AD
Balance Sheet,L2 Current Assets,01/03/2023,Finished Processed Goods,Stock & Work In Progress,Bayer Plc,824C471210,"27,373.68 ",Pharmaceutical purchase,RG2 6AD
Balance Sheet,Fixed Assets,15/02/2023,Additions - Assets Under Construction,Capital (His),Becton Dickinson Dispensing Uk Ltd,CI021274,"98,490.00 ",Vmax160+Easyload+CS+IC Light PHARMACY ROBOT ,RG41 5TS
CHS Estates,L2 Estates,22/02/2023,Med Surg Eqpt General,Medical Physics,Bluespier International Ltd,SIN-01960,"34,944.00 ",1 of 3 Year Contract - C & H Bluespier Theatre Management System Agreement Commencing - 23rd September 2022 - 22nd September 2023,WR9 7ER
Surgery & Anaesthetics,Surgical Divisional Support,22/02/2023,Contractual Clinical Services,Independent Sector,Bmi Healthcare Ltd,S5712NOV22,"99,860.17 ",Provision of Elective Activity ,SK3 0XN
Surgery & Anaesthetics,Surgical Divisional Support,15/02/2023,Healthcare From Commercial Sector,Elective Recovery,Calderdale And Huddersfield Orthopaedic Partnership Llp,INV-0072,"75,000.00 ",Provision of Orthopaedic and/or Specialty Healthcare Services,LS8 2JH
Corporate Services,Service Performance,17/02/2023,Contract : Other External,Pfi,Calderdale Hospital Spc Ltd,CASI38,"3,048,766.66 ",PFI contract monthly payment,M20 2YY
Corporate Services,Service Performance,10/02/2023,External Contracts : Other Hotel Services,Pfi,Calderdale Hospital Spc Ltd,CASI39,"72,636.49 ",Additional variations,M20 2YY
Corporate Services,Service Performance,10/02/2023,Minor Works,Pfi,Calderdale Hospital Spc Ltd,CASI42,"129,248.59 ",Calderdale LED lighting Project,M20 2YY
Corporate Services,Service Performance,01/03/2023,Minor Works,Pfi,Calderdale Hospital Spc Ltd,CASI46,"130,528.87 ",New Works Instructions - CVI 71,M20 2YY
Corporate Services,Service Performance,01/03/2023,Rates,Properties,Calderdale Metropolitan Borough Council,25202291017616,"73,387.00 ",Business rates for Calderdale Royal Hospital,HX1 1TP
Corporate Services,Corporate Services,05/02/2023,Professional Fees,Corporate Services,Care Quality Commission,43126754,"30,805.40 ",Annual Fee in 10 installments 30 805.40 each,WF3 1WE
Balance Sheet,Fixed Assets,01/03/2023,Additions - Assets Under Construction,Capital (His),Ccs Media Ltd,4741726,"27,180.00","CCS Media - 56 x Benq SL4302k 43"" Smart Signage display pantone @ £755 each  ",S40 2EX
Balance Sheet,Fixed Assets,01/03/2023,Additions - Assets Under Construction,Capital (His),Ccs Media Ltd,4741726,"1,680.00",CCS Media -  56 x TDY31 Wireless USB Adaptor @ £30 each,S40 2EX
Balance Sheet,Fixed Assets,01/03/2023,Additions - Assets Under Construction,Capital (His),Ccs Media Ltd,4741726,"4,125.00","CCS Media - 56 x Paramount Universal Tilt Wall Mount for 39"" to 75"" Display @ £75 each ",S40 2EX
Health Informatics,Modernisation Programme,03/02/2023,Computer Software / License  Fees,Modernisation Programme,Cerner Ltd,102177441,"63,112.80 ",Cerner - Table 12: RHO Recurring Charges. Monthly  commencing from the Effective Date and continuing until the end of the Term £52 594 per month x 12 for 2022,W2 1AF
Health Informatics,Modernisation Programme,03/02/2023,Computer Software / License  Fees,Modernisation Programme,Cerner Ltd,102177524,"38,400.00 ",Cerner CCN053 Nuance Drage medical one speech recognition  shared computing services monthly recuring charge £32 000 for 2023.,W2 1AF
Balance Sheet,Fixed Assets,01/03/2023,Additions - Assets Under Construction,Capital (Estates),Checkmate Fire Solutions Ltd,0000005108,"26,524.15 ",HRI - ICU - SUPPLY AND INSTALLATION OF 1 X DOUBLE DOOR FIRE DOORSET AND FIRE STOPPING OF ALL PENETRATIONS THROUGHTOUT THE WARD AS PER YOUR QUOTE,HX5 9DX
Balance Sheet,Fixed Assets,01/03/2023,Additions - Assets Under Construction,Capital (Estates),Checkmate Fire Solutions Ltd,0000005108,"26,524.15 ",HRI - ICU - SUPPLY AND INSTALLATION OF 1 X DOUBLE DOOR FIRE DOORSET AND FIRE STOPPING OF ALL PENETRATIONS THROUGHTOUT THE WARD AS PER YOUR QUOTE ,HX5 9DX
Balance Sheet,Fixed Assets,24/02/2023,Additions - Assets Under Construction,Capital (His),Cisilion Ltd,INVUK0017022,"54,070.80 ",Catalyst 9300 8 x 10GE Network Module  spare,KT22 9UT
Balance Sheet,Fixed Assets,01/03/2023,Additions - Assets Under Construction,Capital (Estates),Clifford Cooper & Sons Ltd,62455,"31,227.84 ",HRI - SUPPLY AND INSTALLATION OF A CONDENSATE RECOVERY SCHEME AS PER YOUR TENDER ,CM20 9GY
Balance Sheet,L2 Current Assets,10/02/2023,Finished Processed Goods,Stock & Work In Progress,Csl Behring Uk Ltd,994052974,"28,495.00 ",Pharmaceutical purchase,RH16 1AH
Balance Sheet,L2 Current Assets,22/02/2023,Other Debtors < One Year,Other Debtors,Draeger Medical Uk Ltd,918482632,"27,041.64 ",MU20602 Isolette 8000 plusOPC4191 Isolette 8000 plus IncubatorDual access  6 access doorsOPC4195 Servo humidityOPC4149 Condensation managementOPC4147 DrawersMU12955 IV poleMU21156 Plug Asm Con Mgmt C2PMQ00087 TECH TRNG ISOLETTE C20,HP2 7BW
Balance Sheet,Fixed Assets,22/02/2023,Additions - Assets Under Construction,Capital (Surgical),Getinge Limited,3129148700,"54,195.00",143302B0 - YUNO 2 EU with autodrive ,NE35 9PZ
Balance Sheet,Fixed Assets,22/02/2023,Additions - Assets Under Construction,Capital (Surgical),Getinge Limited,3129148700,"1,653.30",113067B0 - Head plate,NE35 9PZ
Balance Sheet,Fixed Assets,22/02/2023,Additions - Assets Under Construction,Capital (Surgical),Getinge Limited,3129148700,"1,159.20",113131BC - Extension plate (80mm SFC)  EU-coded,NE35 9PZ
Balance Sheet,Fixed Assets,22/02/2023,Additions - Assets Under Construction,Capital (Surgical),Getinge Limited,3129148700,"1,712.70",113155BC - Seat plate extension (80mm SFC)  EU-code,NE35 9PZ
Balance Sheet,Fixed Assets,22/02/2023,Additions - Assets Under Construction,Capital (Surgical),Getinge Limited,3129148700,"1,964.70",113358BC - Single section leg platewith code plug,NE35 9PZ
Balance Sheet,Fixed Assets,22/02/2023,Additions - Assets Under Construction,Capital (Surgical),Getinge Limited,3129148700,"7,744.50",143334AC - Carbon-fibre back plate for shoulder,NE35 9PZ
Balance Sheet,Fixed Assets,22/02/2023,Additions - Assets Under Construction,Capital (Surgical),Getinge Limited,3129148700,"2,160.00",100743A0 - Screw tension device,NE35 9PZ
Balance Sheet,Fixed Assets,22/02/2023,Additions - Assets Under Construction,Capital (Surgical),Getinge Limited,3129148700,100.80,100751B0 - Short vertical adjustment,NE35 9PZ
Balance Sheet,Fixed Assets,22/02/2023,Additions - Assets Under Construction,Capital (Surgical),Getinge Limited,3129148700,"1,019.70",100197A0 - Foot plate  pair,NE35 9PZ
Balance Sheet,Fixed Assets,22/02/2023,Additions - Assets Under Construction,Capital (Surgical),Getinge Limited,3129148700,"1,650.60",100747A0 - Accessories trolley,NE35 9PZ
Balance Sheet,Fixed Assets,22/02/2023,Additions - Assets Under Construction,Capital (Surgical),Getinge Limited,3129148700,"4,876.14",143341BC - Plate f. steel extension YUNO w.ext.acc.,NE35 9PZ
Central & Technical,Tech Accounting,01/03/2023,CCG Income,Tech Accounting,Greenwood PCN c/o Croft Medical Services Ltd,LTCHUDDSPCNS,"147,188.00 ",UECB WINTER MONIES ALLOCATION - KIRKLEES PRIMARY CARE - ADDITIONAL NURSING CAPACITY TO SUPPORT LONG TERM CONDITION REVIEWS,HD2 2RU
Balance Sheet,Fixed Assets,01/03/2023,Additions - Assets Under Construction,Capital (Surgical),Haag-Streit Uk Ltd,SI30040729,"79,809.45",Haag-Streit BP900 LED slit lamp  RM02  IM600 (BP)  HSM600 (large)  silver headrest (with lower part)  table fittings & fixed background5602743LFQuote: SQ30004949-2,CM20 2TT
Balance Sheet,Fixed Assets,01/03/2023,Additions - Assets Under Construction,Capital (Surgical),Haag-Streit Uk Ltd,SI30040729,315.00,Protection Screen for BP900 slit lamp7221002Quote: SQ30004949-2,CM20 2TT
Balance Sheet,Fixed Assets,01/03/2023,Additions - Assets Under Construction,Capital (Surgical),Haag-Streit Uk Ltd,SI30040729,"4,050.00","21.5"" All-in-One PC1491191Quote: SQ30004949-2",CM20 2TT
Balance Sheet,Fixed Assets,01/03/2023,Additions - Assets Under Construction,Capital (Surgical),Haag-Streit Uk Ltd,SI30040729,144.75,Mini USB keyboard and mouse1480036Quote: SQ30004949-2,CM20 2TT
Balance Sheet,Fixed Assets,01/03/2023,Additions - Assets Under Construction,Capital (Surgical),Haag-Streit Uk Ltd,SI30040729,"1,160.70",Isolating Transformer1450153Quote: SQ30004949-2,CM20 2TT
Medical Division,Emergency Medicine,22/02/2023,B5 Agency Nursing,A&E Nursing,Icare24 Ltd,INV48255,"4,458.21 ",B5 Agency Nursing,B16 8QG
Medical Division,Medical Specialities,22/02/2023,B5 Agency Nursing,Cardiology,Icare24 Ltd,INV48255,543.84 ,B5 Agency Nursing,B16 8QG
Corporate Services,RAFT,22/02/2023,B5 Agency Nursing,Central Operations Team CORP,Icare24 Ltd,INV48255,540.39 ,B5 Agency Nursing,B16 8QG
Medical Division,Medical Specialities,22/02/2023,B5 Agency Nursing,Gastroenterology,Icare24 Ltd,INV48255,"1,683.11 ",B5 Agency Nursing,B16 8QG
Medical Division,Acute Medical,22/02/2023,B5 Agency Nursing,General Medicine,Icare24 Ltd,INV48255,"2,802.80 ",B5 Agency Nursing,B16 8QG
Surgery & Anaesthetics,General Surgery,22/02/2023,B5 Agency Nursing,General Surgery,Icare24 Ltd,INV48255,"1,162.31 ",B5 Agency Nursing,B16 8QG
Medical Division,Acute Medical,22/02/2023,B5 Agency Nursing,Geriatric Medicine,Icare24 Ltd,INV48255,"2,790.83 ",B5 Agency Nursing,B16 8QG
Medical Division,Integrated Medical Specialities,22/02/2023,B5 Agency Nursing,Ims Stroke / Rehabilitation,Icare24 Ltd,INV48255,"4,423.76 ",B5 Agency Nursing,B16 8QG
Medical Division,Integrated Medical Specialities,22/02/2023,B5 Agency Nursing,Medical Oncology,Icare24 Ltd,INV48255,"1,022.81 ",B5 Agency Nursing,B16 8QG
Surgery & Anaesthetics,Operating Services,22/02/2023,B5 Agency Nursing,Operating Services,Icare24 Ltd,INV48255,"1,738.24 ",B5 Agency Nursing,B16 8QG
Medical Division,Medical Specialities,22/02/2023,B5 Agency Nursing,Respiratory,Icare24 Ltd,INV48255,599.88 ,B5 Agency Nursing,B16 8QG
Surgery & Anaesthetics,Orthopaedics,22/02/2023,B5 Agency Nursing,Trauma & Orthopaedics,Icare24 Ltd,INV48255,"1,683.17 ",B5 Agency Nursing,B16 8QG
Medical Division,Emergency Medicine,10/02/2023,B5 Agency Nursing,A&E Nursing,Icare24 Ltd,INV55848A,"4,154.24 ",B5 Agency Nursing,B16 8QG
Medical Division,Medical Specialities,10/02/2023,B5 Agency Nursing,Cardiology,Icare24 Ltd,INV55848A,543.84 ,B5 Agency Nursing,B16 8QG
Corporate Services,RAFT,10/02/2023,B5 Agency Nursing,Central Operations Team CORP,Icare24 Ltd,INV55848A,"4,015.71 ",B5 Agency Nursing,B16 8QG
Medical Division,Medical Specialities,10/02/2023,B5 Agency Nursing,Gastroenterology,Icare24 Ltd,INV55848A,543.84 ,B5 Agency Nursing,B16 8QG
Medical Division,Acute Medical,10/02/2023,B5 Agency Nursing,General Medicine,Icare24 Ltd,INV55848A,"1,683.11 ",B5 Agency Nursing,B16 8QG
Surgery & Anaesthetics,General Surgery,10/02/2023,B5 Agency Nursing,General Surgery,Icare24 Ltd,INV55848A,"1,342.31 ",B5 Agency Nursing,B16 8QG
Medical Division,Acute Medical,10/02/2023,B5 Agency Nursing,Geriatric Medicine,Icare24 Ltd,INV55848A,"2,784.26 ",B5 Agency Nursing,B16 8QG
Medical Division,Integrated Medical Specialities,10/02/2023,B5 Agency Nursing,Ims Stroke / Rehabilitation,Icare24 Ltd,INV55848A,"3,282.62 ",B5 Agency Nursing,B16 8QG
Medical Division,Integrated Medical Specialities,10/02/2023,B5 Agency Nursing,Medical Oncology,Icare24 Ltd,INV55848A,"1,236.76 ",B5 Agency Nursing,B16 8QG
Surgery & Anaesthetics,Operating Services,10/02/2023,B5 Agency Nursing,Operating Services,Icare24 Ltd,INV55848A,"2,678.55 ",B5 Agency Nursing,B16 8QG
Medical Division,Medical Specialities,10/02/2023,B5 Agency Nursing,Respiratory,Icare24 Ltd,INV55848A,563.42 ,B5 Agency Nursing,B16 8QG
Surgery & Anaesthetics,Orthopaedics,10/02/2023,B5 Agency Nursing,Trauma & Orthopaedics,Icare24 Ltd,INV55848A,567.41 ,B5 Agency Nursing,B16 8QG
CHS Facilities,L2 Facilities,01/02/2023,Cleaning Materials,Hpv,Inivos Uk Ltd,I000012755,"87,696.00 ",ProXcide Service Level Agreement Support package (per system) at £3654 x 4 per annum - 5 year fixed 1/5 year ,PE30 4NG
Medical Division,Acute Medical,08/02/2023,Pbr Excluded Devices (Pass Through),Diabetes Endocrinology,Insulet International Ltd,72118717,"30,755.28 ",diabetes consumables,W6 9HR
Balance Sheet,Fixed Assets,17/02/2023,Additions - Assets Under Construction,CAPITAL (Reconfig HRI),Integrated Health Projects,23020004,"2,232,013.62 ",STAGE 3 & 4 GMP SUBMISSION FOR THE DELIVERY OF A NEW ACCIDENT AND EMERGENCY BUILD AT THE HUDDERSFIELD ROYAL INFIRMARY ,WD24 4WW
Balance Sheet,L2 Current Assets,01/02/2023,Other Debtors < One Year,Other Debtors,Karl Storz Endoscopy (Uk) Ltd,6020141484,"49,837.60 ",Morcellator Quote - 5100124619HOPKINS TelescopeFiber Optic Light CableResectoscope Sheath+ Accessories,SL14TQ
Balance Sheet,Fixed Assets,01/03/2023,Additions - Assets Under Construction,Capital (Fss),Karl Storz Endoscopy (Uk) Ltd,6020153069,"78,563.62 ",KARL STORZ 4K COMPONENTS. PLEASE SEE ATTACHMENTS,SL14TQ
Estates & Facilities,Estates,03/02/2023,Rates,Estates Operations,Kirklees Council,969286425_2022,"43,093.00 ","business rates for Huddersfield Royal Infirmary invoice 969286425_2022	",HD1 2NF
Families & Specialist Services,Pharmacy,17/02/2023,Healthcare From Commercial Sector,Pharm Gen,L Rowland & Company (Retail) Ltd,1800001817,"791,269.10 ",Rowlands Outpatient Pharmacy Contract. medicines costs,WA7 3DJ
Families & Specialist Services,Pharmacy,17/02/2023,Healthcare From Commercial Sector,Pharm Gen,L Rowland & Company (Retail) Ltd,1800001817,"95,044.66",Rowlands Outpatient Pharmacy contract DISPENSING FEE ,WA7 3DJ
Families & Specialist Services,Radiology,01/02/2023,Med Surg Eqpt Hire,Ct,Medispace B.V.,20220613,"30,025.92 ",Rental of a CM050 CT scan box with Canon Prime 160 slice CT scanner plus 2 radiographers to run the service 8am-20.00pm 7 days per week,2712 PJ  The Netherlands
Families & Specialist Services,Radiology,09/02/2023,Med Surg Eqpt Hire,Ct,Medispace B.V.,20230144,"30,025.92 ",Rental of a CM050 CT scan box with Canon Prime 160 slice CT scanner plus 2 radiographers to run the service 8am-20.00pm 7 days per week,2712 PJ  The Netherlands
Medical Division,Medical Specialities,22/02/2023,Pacemakers,Cardiology,Medtronic Ltd,1205309337,"48,000.00 ",Pacemakers,WD18 8WW
Medical Division,Medical Specialities,24/02/2023,Pacemakers,Cardiology,Medtronic Ltd,1205314062,"48,000.00 ",Pacemakers,WD18 8WW
Families & Specialist Services,Pathology,15/02/2023,Blood Products,Blood Sciences,NHS Blood And Transplant,7011446,"85,109.73 ",MONTHLY CONTRACT CHARGE BLOOD & COMPONENTS,LS15 7TW
Families & Specialist Services,Pathology,15/02/2023,Blood Products,Blood Sciences,NHS Blood And Transplant,7011447,"32,812.05 ",MONTHLY CONTRACT CHARGE BLOOD & COMPONENTS,LS15 7TW
Balance Sheet,L2 Long Term Creditors,03/02/2023,Lease Liabilities under IFRS 16 > 1 year,Finance Leases,NHS Property Services Ltd,648504,"38,802.33",Rent 01-Jan-2023 31-Mar-2023,EC2V 7NG
Corporate Services,Service Performance,03/02/2023,Contract : Other External,Properties,NHS Property Services Ltd,648504,"1,940.12",Rent Management Fee 01-Jan-2023 31-Mar-2023,EC2V 7NG
Corporate Services,Service Performance,03/02/2023,Contract : Other External,Properties,NHS Property Services Ltd,648505,"3,917.18",Rates On Account 01-Jan-2023 31-Mar-2023,EC2V 7NG
Balance Sheet,L2 Long Term Creditors,03/02/2023,Lease Liabilities under IFRS 16 > 1 year,Finance Leases,NHS Property Services Ltd,648505,"28,440.36",Rent 01-Jan-2023 31-Mar-2023,EC2V 7NG
Corporate Services,Service Performance,03/02/2023,Contract : Other External,Properties,NHS Property Services Ltd,649845,"17,940.15",FM Services On Account 01-Jan-2023 31-Mar-2023,EC2V 7NG
Corporate Services,Service Performance,03/02/2023,Contract : Other External,Properties,NHS Property Services Ltd,649845,"14,960.15",Service Charge On Account 01-Jan-2023 31-Mar-2023,EC2V 7NG
CHS Balance Sheet,Current Liabilities,01/02/2023,Non- NHS  Trade Creditors < One Year,Other Creditors,NHS Supply Chain,1123218369,"165,659.29 ",Goods delivered week ending 23-Dec-2022,DE55 4QJ
CHS Balance Sheet,Current Liabilities,01/02/2023,Non- NHS  Trade Creditors < One Year,Other Creditors,NHS Supply Chain,1123221197,"223,757.81 ",Goods delivered week ending 23-Dec-2022,DE55 4QJ
CHS Balance Sheet,Current Liabilities,01/02/2023,Non- NHS  Trade Creditors < One Year,Other Creditors,NHS Supply Chain,1123222117,"76,666.83 ",Goods delivered week ending 30-Dec-2022,DE55 4QJ
CHS Balance Sheet,Current Liabilities,01/02/2023,Non- NHS  Trade Creditors < One Year,Other Creditors,NHS Supply Chain,1123223793,"69,997.33 ",Goods delivered week ending 30-Dec-2022,DE55 4QJ
CHS Balance Sheet,Current Liabilities,03/02/2023,Non- NHS  Trade Creditors < One Year,Other Creditors,NHS Supply Chain,1123225291,"89,096.65 ",Goods delivered week ending 06/01/2023,DE55 4QJ
CHS Balance Sheet,Current Liabilities,03/02/2023,Non- NHS  Trade Creditors < One Year,Other Creditors,NHS Supply Chain,1123228284,"97,743.52 ",Goods delivered week ending 06/01/2023,DE55 4QJ
CHS Balance Sheet,Current Liabilities,10/02/2023,Non- NHS  Trade Creditors < One Year,Other Creditors,NHS Supply Chain,1123229502,"133,784.56 ",Goods delivered week ending 13-Jan-2023,DE55 4QJ
CHS Balance Sheet,Current Liabilities,10/02/2023,Non- NHS  Trade Creditors < One Year,Other Creditors,NHS Supply Chain,1123235376,"175,608.79 ",Goods delivered week ending 13-Jan-2023,DE55 4QJ
CHS Balance Sheet,Current Liabilities,17/02/2023,Non- NHS  Trade Creditors < One Year,Other Creditors,NHS Supply Chain,1123238381,"144,208.24 ",Goods delivered week ending 20/01/2023,DE55 4QJ
CHS Balance Sheet,Current Liabilities,17/02/2023,Non- NHS  Trade Creditors < One Year,Other Creditors,NHS Supply Chain,1123242093,"152,130.54 ",Goods delivered week ending 20-Jan-2023,DE55 4QJ
CHS Balance Sheet,Current Liabilities,24/02/2023,Non- NHS  Trade Creditors < One Year,Other Creditors,NHS Supply Chain,1123244419,"118,541.03 ",Goods delivered week ending 27-Jan-2023,DE55 4QJ
CHS Balance Sheet,Current Liabilities,24/02/2023,Non- NHS  Trade Creditors < One Year,Other Creditors,NHS Supply Chain,1123248218,"118,877.62 ",Goods delivered week ending 27-Jan-2023,DE55 4QJ
Balance Sheet,Fixed Assets,22/02/2023,Additions - Assets Under Construction,Capital (Surgical),NHS Supply Chain,9523001301,"33,712.01 ",Venue Go R4 Venue power cord for UK Venue R2 Language Kit - English US Opthalmic Application Prime Service - Expert Live Support L4-20t-RS Probe C1-5-RS Probe Venue GO: : 2 years additional servicecNerveVenue Go Cart,DE55 4QJ
CHS Estates,L2 Estates,01/03/2023,Med Surg Eqpt Mtce Contracts,Management Estates,NHS Supply Chain - Maintenance,2123007047,"30,439.43 ",SERVICE AND MANTENANCE CONTRACT -FULLY COMPREHENSIVE COVER FOR KADAKDR7500N SYSTEM AT TODMORDEN. Year 3 1/3/2023 - 29/2/2024 ,DE55 4QJ
Corporate Services,Finance,24/02/2023,Computer Software / License  Fees,Finance,Northumbria Healthcare NHS Foundation Trust,7550002181,"18,905.50 ",Financial Software system costs,NE27 0QJ
Balance Sheet,L2 Current Assets,03/02/2023,Finished Processed Goods,Stock & Work In Progress,Novartis Pharmaceuticals Uk Ltd,92715922,"46,421.76 ",Pharmaceutical purchase,W12 7FQ
Balance Sheet,L2 Current Assets,24/02/2023,Finished Processed Goods,Stock & Work In Progress,Novartis Pharmaceuticals Uk Ltd,92725699,"42,201.60 ",Pharmaceutical purchase,W12 7FQ
Community Division,Community Nursing,01/03/2023,Continence Products,Bladder and Bowel Service,Paul Hartmann Ltd,71638324O,"26,625.29 ",Continence Home Delivery Contract.,OL10 2TT
Balance Sheet,L2 Long Term Creditors,03/02/2023,Lease Liabilities under IFRS 16 > 1 year,Finance Leases,Pennine Property Partnership Llp,LINV52709,"227,979.60 ",Rent 25/12/2022 24/03/2023 Medical Centre  Acre Mill  Outpatients,WA4 6HL
Corporate Services,Service Performance,22/02/2023,Contract : Other External,Properties,Pennine Property Partnership Llp,SINV3232,"48,516.60 ",Service Charge Recharge – January 2023 Acre Mills Outpatient Department,WA4 6HL
Balance Sheet,Fixed Assets,03/02/2023,Additions - Assets Under Construction,Capital (Medicine & Elderly),Philips Electronics Uk Ltd,7300404161,"521,785.96 ",3x NUSX001 - Epiq CVx 3D and NUSX003 - 2x Epiq CVx 2D with 12 Month Warranty on all machines,GU2 8XG
Pmu,Pmu,01/03/2023,Contract : Other External,Pmu,Pilz Ltd,HPS.2023.01,"27,706.87 ",POV03W: 50% share of gross margin Povidone/iodine product (January receipts),S75 3SP
Surgery & Anaesthetics,Surgical Divisional Support,22/02/2023,Healthcare From Commercial Sector,Support Services,Pioneer Healthcare Ltd,266,"45,540.64",Insourcing Services Sept 2022 ENT OP,S10 5UB
Surgery & Anaesthetics,Surgical Divisional Support,22/02/2023,Healthcare From Commercial Sector,Support Services,Pioneer Healthcare Ltd,266,"23,325.42",Insourcing Services Sept 2022 ENT Procedures,S10 5UB
Surgery & Anaesthetics,Surgical Divisional Support,22/02/2023,Healthcare From Commercial Sector,Support Services,Pioneer Healthcare Ltd,266,"14,115.18",Insourcing Services Sept 2022 Audiology,S10 5UB
Surgery & Anaesthetics,Surgical Divisional Support,22/02/2023,Healthcare From Commercial Sector,Support Services,Pioneer Healthcare Ltd,267,"29,113.00 ",Insourcing Services September 2022 Neurology,S10 5UB
Surgery & Anaesthetics,Surgical Divisional Support,22/02/2023,Healthcare From Commercial Sector,Support Services,Pioneer Healthcare Ltd,304,"55,420.00 ",Insourcing Services to cover from 08 July 2022 to 07 July 2023Contract Reference: C80363,S10 5UB
Surgery & Anaesthetics,Surgical Divisional Support,22/02/2023,Healthcare From Commercial Sector,Support Services,Pioneer Healthcare Ltd,304,"55,420.00 ",Insourcing Services to cover from 08 July 2022 to 07 July 2023Contract Reference: C80363,S10 5UB
Surgery & Anaesthetics,Surgical Divisional Support,22/02/2023,Healthcare From Commercial Sector,Support Services,Pioneer Healthcare Ltd,3591,"49,404.00 ",Insourcing Services to cover from 08 July 2022 to 07 July 2023Contract Reference: C80363,S10 5UB
Surgery & Anaesthetics,Surgical Divisional Support,22/02/2023,Healthcare From Commercial Sector,Support Services,Pioneer Healthcare Ltd,368,"27,112.00 ",Insourcing Services October 2022 Neurology ,S10 5UB
Surgery & Anaesthetics,Surgical Divisional Support,22/02/2023,Healthcare From Commercial Sector,Support Services,Pioneer Healthcare Ltd,3688,"52,749.88 ",Insourcing Services ENT OP,S10 5UB
Surgery & Anaesthetics,Surgical Divisional Support,22/02/2023,Healthcare From Commercial Sector,Support Services,Pioneer Healthcare Ltd,370,"73,282.35 ",Insourcing Services to cover from 08 July 2022 to 07 July 2023Contract Reference: C80363,S10 5UB
Surgery & Anaesthetics,Surgical Divisional Support,24/02/2023,Healthcare From Commercial Sector,Support Services,Pioneer Healthcare Ltd,385,"53,270.00 ",Insourcing Services Ophthalmology,S10 5UB
Surgery & Anaesthetics,Surgical Divisional Support,24/02/2023,Healthcare From Commercial Sector,Support Services,Pioneer Healthcare Ltd,386,"26,307.00",Insourcing Services to cover from 08 July 2022 to 07 July 2023Contract Reference: C80363,S10 5UB
Surgery & Anaesthetics,Surgical Divisional Support,24/02/2023,Healthcare From Commercial Sector,Support Services,Pioneer Healthcare Ltd,395,"48,840.41",Insourcing Services November 2022 ENT Consultations,S10 5UB
Surgery & Anaesthetics,Surgical Divisional Support,24/02/2023,Healthcare From Commercial Sector,Support Services,Pioneer Healthcare Ltd,395,"12,891.79",Insourcing Services November 2022 ENT Procedures,S10 5UB
Surgery & Anaesthetics,Surgical Divisional Support,24/02/2023,Healthcare From Commercial Sector,Support Services,Pioneer Healthcare Ltd,395,"18,373.34",Insourcing Services November 2022 ENT Audio,S10 5UB
Surgery & Anaesthetics,Surgical Divisional Support,24/02/2023,Healthcare From Commercial Sector,Support Services,Pioneer Healthcare Ltd,395,"2,823.60",Insourcing Services November 2022 ENT Ophthalmology Clinic,S10 5UB
Medical Division,Emergency Medicine,03/02/2023,B5 Agency Nursing,A&E Nursing,Red Group Personnel Ltd,080123CH,"3,222.57 ",B5 Agency Nursing,HA3 5AB
Medical Division,Medical Specialities,03/02/2023,B5 Agency Nursing,Cardiology,Red Group Personnel Ltd,080123CH,"1,244.16 ",B5 Agency Nursing,HA3 5AB
Medical Division,Acute Medical,03/02/2023,B5 Agency Nursing,General Medicine,Red Group Personnel Ltd,080123CH,"10,636.87 ",B5 Agency Nursing,HA3 5AB
Medical Division,Acute Medical,03/02/2023,B5 Agency Nursing,Geriatric Medicine,Red Group Personnel Ltd,080123CH,"7,930.92 ",B5 Agency Nursing,HA3 5AB
Medical Division,Integrated Medical Specialities,03/02/2023,B5 Agency Nursing,Ims Stroke / Rehabilitation,Red Group Personnel Ltd,080123CH,"2,727.07 ",B5 Agency Nursing,HA3 5AB
Families & Specialist Services,Childrens,03/02/2023,B5 Agency Nursing,Inpatients Paediatrics,Red Group Personnel Ltd,080123CH,787.58 ,B5 Agency Nursing,HA3 5AB
Surgery & Anaesthetics,Operating Services,03/02/2023,B5 Agency Nursing,Operating Services,Red Group Personnel Ltd,080123CH,"6,674.65 ",B5 Agency Nursing,HA3 5AB
Medical Division,Medical Specialities,03/02/2023,B5 Agency Nursing,Respiratory,Red Group Personnel Ltd,080123CH,358.80 ,B5 Agency Nursing,HA3 5AB
Surgery & Anaesthetics,Orthopaedics,03/02/2023,B5 Agency Nursing,Trauma & Orthopaedics,Red Group Personnel Ltd,080123CH,550.51 ,B5 Agency Nursing,HA3 5AB
Medical Division,Emergency Medicine,10/02/2023,B5 Agency Nursing,A&E Nursing,Red Group Personnel Ltd,150123CH,1506.94,B5 Agency Nursing,HA3 5AB
Corporate Services,RAFT,10/02/2023,B5 Agency Nursing,Central Operations Team CORP,Red Group Personnel Ltd,150123CH,933.47,B5 Agency Nursing,HA3 5AB
Surgery & Anaesthetics,Head & Neck,10/02/2023,B5 Agency Nursing,Ent,Red Group Personnel Ltd,150123CH,621.97,B5 Agency Nursing,HA3 5AB
Medical Division,Medical Specialities,10/02/2023,B5 Agency Nursing,Gastroenterology,Red Group Personnel Ltd,150123CH,359.03,B5 Agency Nursing,HA3 5AB
Medical Division,Acute Medical,10/02/2023,B5 Agency Nursing,General Medicine,Red Group Personnel Ltd,150123CH,11946.4,B5 Agency Nursing,HA3 5AB
Surgery & Anaesthetics,General Surgery,10/02/2023,B5 Agency Nursing,General Surgery,Red Group Personnel Ltd,150123CH,2337.9,B5 Agency Nursing,HA3 5AB
Medical Division,Acute Medical,10/02/2023,B5 Agency Nursing,Geriatric Medicine,Red Group Personnel Ltd,150123CH,5463.08,B5 Agency Nursing,HA3 5AB
Medical Division,Integrated Medical Specialities,10/02/2023,B5 Agency Nursing,Ims Stroke / Rehabilitation,Red Group Personnel Ltd,150123CH,7549.81,B5 Agency Nursing,HA3 5AB
Families & Specialist Services,Childrens,10/02/2023,B5 Agency Nursing,Inpatients Paediatrics,Red Group Personnel Ltd,150123CH,3076.68,B5 Agency Nursing,HA3 5AB
Surgery & Anaesthetics,Operating Services,10/02/2023,B5 Agency Nursing,Operating Services,Red Group Personnel Ltd,150123CH,5500.88,B5 Agency Nursing,HA3 5AB
Surgery & Anaesthetics,Orthopaedics,10/02/2023,B5 Agency Nursing,Trauma & Orthopaedics,Red Group Personnel Ltd,150123CH,621.97,B5 Agency Nursing,HA3 5AB
Medical Division,Emergency Medicine,01/03/2023,B5 Agency Nursing,A&E Nursing,Red Group Personnel Ltd,220123CH,2007.14,B5 Agency Nursing,HA3 5AB
Corporate Services,RAFT,01/03/2023,B5 Agency Nursing,Central Operations Team CORP,Red Group Personnel Ltd,220123CH,621.97,B5 Agency Nursing,HA3 5AB
Surgery & Anaesthetics,Head & Neck,01/03/2023,B5 Agency Nursing,Ent,Red Group Personnel Ltd,220123CH,689.97,B5 Agency Nursing,HA3 5AB
Medical Division,Medical Specialities,01/03/2023,B5 Agency Nursing,Gastroenterology,Red Group Personnel Ltd,220123CH,598.03,B5 Agency Nursing,HA3 5AB
Medical Division,Acute Medical,01/03/2023,B5 Agency Nursing,General Medicine,Red Group Personnel Ltd,220123CH,11077.33,B5 Agency Nursing,HA3 5AB
Surgery & Anaesthetics,General Surgery,01/03/2023,B5 Agency Nursing,General Surgery,Red Group Personnel Ltd,220123CH,1118.26,B5 Agency Nursing,HA3 5AB
Medical Division,Acute Medical,01/03/2023,B5 Agency Nursing,Geriatric Medicine,Red Group Personnel Ltd,220123CH,4989.17,B5 Agency Nursing,HA3 5AB
Medical Division,Integrated Medical Specialities,01/03/2023,B5 Agency Nursing,Ims Stroke / Rehabilitation,Red Group Personnel Ltd,220123CH,6239.16,B5 Agency Nursing,HA3 5AB
Families & Specialist Services,Childrens,01/03/2023,B5 Agency Nursing,Inpatients Paediatrics,Red Group Personnel Ltd,220123CH,787.62,B5 Agency Nursing,HA3 5AB
Surgery & Anaesthetics,Operating Services,01/03/2023,B5 Agency Nursing,Operating Services,Red Group Personnel Ltd,220123CH,1697.08,B5 Agency Nursing,HA3 5AB
Medical Division,Medical Specialities,01/03/2023,B5 Agency Nursing,Respiratory,Red Group Personnel Ltd,220123CH,2517.36,B5 Agency Nursing,HA3 5AB
Medical Division,Emergency Medicine,15/02/2023,B5 Agency Nursing,A&E Nursing,Red Group Personnel Ltd,251222CH,"2,457.84 ",B5 Agency Nursing,HA3 5AB
Surgery & Anaesthetics,Head & Neck,15/02/2023,B5 Agency Nursing,Ent,Red Group Personnel Ltd,251222CH,633.88 ,B5 Agency Nursing,HA3 5AB
Medical Division,Medical Specialities,15/02/2023,B5 Agency Nursing,Gastroenterology,Red Group Personnel Ltd,251222CH,669.72 ,B5 Agency Nursing,HA3 5AB
Medical Division,Acute Medical,15/02/2023,B5 Agency Nursing,General Medicine,Red Group Personnel Ltd,251222CH,"7,591.98 ",B5 Agency Nursing,HA3 5AB
Surgery & Anaesthetics,General Surgery,15/02/2023,B5 Agency Nursing,General Surgery,Red Group Personnel Ltd,251222CH,"2,165.04 ",B5 Agency Nursing,HA3 5AB
Medical Division,Acute Medical,15/02/2023,B5 Agency Nursing,Geriatric Medicine,Red Group Personnel Ltd,251222CH,"3,888.35 ",B5 Agency Nursing,HA3 5AB
Medical Division,Integrated Medical Specialities,15/02/2023,B5 Agency Nursing,Ims Stroke / Rehabilitation,Red Group Personnel Ltd,251222CH,"2,729.77 ",B5 Agency Nursing,HA3 5AB
Families & Specialist Services,Childrens,15/02/2023,B5 Agency Nursing,Inpatients Paediatrics,Red Group Personnel Ltd,251222CH,733.55 ,B5 Agency Nursing,HA3 5AB
Surgery & Anaesthetics,Operating Services,15/02/2023,B5 Agency Nursing,Operating Services,Red Group Personnel Ltd,251222CH,"3,423.42 ",B5 Agency Nursing,HA3 5AB
Medical Division,Medical Specialities,15/02/2023,B5 Agency Nursing,Respiratory,Red Group Personnel Ltd,251222CH,"3,668.97 ",B5 Agency Nursing,HA3 5AB
Medical Division,Emergency Medicine,24/02/2023,B5 Agency Nursing,A&E Nursing,Red Group Personnel Ltd,290123CH,802.17 ,B5 Agency Nursing,HA3 5AB
Medical Division,Medical Specialities,24/02/2023,B5 Agency Nursing,Cardiology,Red Group Personnel Ltd,290123CH,609.94 ,B5 Agency Nursing,HA3 5AB
Corporate Services,RAFT,24/02/2023,B5 Agency Nursing,Central Operations Team CORP,Red Group Personnel Ltd,290123CH,633.88 ,B5 Agency Nursing,HA3 5AB
Surgery & Anaesthetics,General Surgery,24/02/2023,B5 Agency Nursing,Endoscopy,Red Group Personnel Ltd,290123CH,454.77 ,B5 Agency Nursing,HA3 5AB
Surgery & Anaesthetics,Head & Neck,24/02/2023,B5 Agency Nursing,Ent,Red Group Personnel Ltd,290123CH,359.03 ,B5 Agency Nursing,HA3 5AB
Medical Division,Acute Medical,24/02/2023,B5 Agency Nursing,General Medicine,Red Group Personnel Ltd,290123CH,"11,636.43 ",B5 Agency Nursing,HA3 5AB
Medical Division,Acute Medical,24/02/2023,B5 Agency Nursing,Geriatric Medicine,Red Group Personnel Ltd,290123CH,"3,202.67 ",B5 Agency Nursing,HA3 5AB
Medical Division,Integrated Medical Specialities,24/02/2023,B5 Agency Nursing,Ims Stroke / Rehabilitation,Red Group Personnel Ltd,290123CH,"5,919.04 ",B5 Agency Nursing,HA3 5AB
Surgery & Anaesthetics,Operating Services,24/02/2023,B5 Agency Nursing,Operating Services,Red Group Personnel Ltd,290123CH,"4,944.94 ",B5 Agency Nursing,HA3 5AB
Medical Division,Medical Specialities,24/02/2023,B5 Agency Nursing,Respiratory,Red Group Personnel Ltd,290123CH,"2,475.09 ",B5 Agency Nursing,HA3 5AB
Surgery & Anaesthetics,Orthopaedics,24/02/2023,B5 Agency Nursing,Trauma & Orthopaedics,Red Group Personnel Ltd,290123CH,"1,101.02 ",B5 Agency Nursing,HA3 5AB
Health Informatics,Corporate And Operations,01/03/2023,Computer Network Costs,It Support,Redcentric Solutions Ltd,SI046063,"66,125.08 ",N-ACC-357 LeasedLine 1000Mb/10000Mb – Resilient Fully Diverse  Fee- Recurring from 1/12/2022 to 30/11/2023 Site:Huddersfield Royal Infirmary-HD3 3EA,HG3 1UG
Balance Sheet,Fixed Assets,03/02/2023,Additions - Assets Under Construction,Capital (Fss),Roche Diagnostics Ltd,6571671813,"67,680.00 ",Liat PCR Analysers as per  Calderdale and Huddersfield NHS Foundation Trust Microbiology Department Proposal forthe Capital Purchase and service of 6 x cobas® LIAT with 1yr warranty,RH15 9RY
Balance Sheet,L2 Current Assets,24/02/2023,Finished Processed Goods,Stock & Work In Progress,Roche Products Ltd,1322268870,"47,189.26 ",Pharmaceutical purchase,AL7 1TW
Balance Sheet,L2 Current Assets,24/02/2023,Finished Processed Goods,Stock & Work In Progress,Roche Products Ltd,1322270268,"40,065.12 ",Pharmaceutical purchase,AL7 1TW
CHS Estates,L2 Estates,08/02/2023,Water,Estates Operations,Scottish Water Business Stream Ltd,9179817401/1563598,"30,419.84 ",Mains water and sewerage HRI  PMU and Elland Equipment Stores,EH12 9DH
CHS Estates,L2 Estates,03/02/2023,Gas,Estates Operations,SEFE Energy Limited,INV01928408,"35,785.75 ",Mains gas for HRI ,NW1 3BF
CHS Estates,L2 Estates,10/02/2023,Gas,Estates Operations,SEFE Energy Limited,INV02737164,"206,405.84 ",Mains gas for HRI ,M15 4RP
CHS Estates,L2 Estates,17/02/2023,Minor Works,Estates Operations,Sky Inside Uk Ltd,AMS/0997,"33,600.00 ",HRI - CHILD DEVELOPMENT UNIT - ELLAND - SUPPLY  INSTALLATION AND COMISSION 5 LIVING SKIES AS PER YOUR QUOTE ,BS31 1AY
Health Informatics,Corporate And Operations,03/02/2023,Computer Software / License  Fees,It Support,Softcat Plc,INVUK696759,"78,000.00 ",Andor - Virtual Visit Mode. Strategic partnership benefits  reduced price £65 000p/a for 3 year contract  to Sept 2024 ,SL7 1TB
Balance Sheet,Fixed Assets,10/02/2023,Additions - Assets Under Construction,Capital (His),Softcat Plc,INVUK698314,"200,580.02 ","Notebook ThinkPad L14 Gen3 21C2CTO1WW Rx Lenovo ThinkCentre M70q Gen 3 Lenovo ThinkCentre Tiny-In-One. Display diagonal: 60.5 cm (23.8"") ",SL7 1TB
Health Informatics,Modernisation Programme,03/02/2023,Computer Software / License  Fees,Modernisation Programme,Softcat Plc,INVUK698325,"104,922.91 ",SQLSvrEntCore All Language SA MVL 2Lic CoreLic x 34 @ £2 571:64 each.  Quote Number FRM00090065 V2,SL7 1TB
Health Informatics,Modernisation Programme,15/02/2023,Computer Software / License  Fees,Modernisation Programme,Softcat Plc,INVUK710115,"66,036.48",AzureActiveDirectory P2K ShardSvr ALNG SubsVL per user,SL7 1TB
Health Informatics,Modernisation Programme,15/02/2023,Computer Software / License  Fees,Modernisation Programme,Softcat Plc,INVUK710115,"298,302.72",EntMobandSecE3Full ShrdSvr All Language SubsVL MVL PerUsr,SL7 1TB
Health Informatics,Modernisation Programme,15/02/2023,Computer Software / License  Fees,Modernisation Programme,Softcat Plc,INVUK710115,"134,292.00",O365ProPlus ShrdSvr All Language SubsVL MVL PerUsrMicrosoft 365 Apps for enterprise,SL7 1TB
Health Informatics,Modernisation Programme,15/02/2023,Computer Software / License  Fees,Modernisation Programme,Softcat Plc,INVUK710115,"39,504.00",O365E3 ShrdSvr All Language SubsVL MVL PerUsr,SL7 1TB
Health Informatics,Modernisation Programme,15/02/2023,Computer Software / License  Fees,Modernisation Programme,Softcat Plc,INVUK710115,813.12,O365E5 ShrdSvr All Language SU MVL O365PE3 PerUsr,SL7 1TB
Health Informatics,Modernisation Programme,15/02/2023,Computer Software / License  Fees,Modernisation Programme,Softcat Plc,INVUK710115,"188,722.80",O365E1 ShrdSvr All Language SubsVL MVL PerUsr,SL7 1TB
Health Informatics,Modernisation Programme,15/02/2023,Computer Software / License  Fees,Modernisation Programme,Softcat Plc,INVUK710115,"40,118.40",O365E1FromSA ShrdSvr All Language SubsVL MVL PerUsr,SL7 1TB
Health Informatics,Modernisation Programme,15/02/2023,Computer Software / License  Fees,Modernisation Programme,Softcat Plc,INVUK710115,"3,182.50",WVDAE5pUSUfE3pD All Language MonthlySub Per User,SL7 1TB
Health Informatics,Modernisation Programme,15/02/2023,Computer Software / License  Fees,Modernisation Programme,Softcat Plc,INVUK710115,"9,929.76",Phone Sys ShrdSvr ALNG SubsVL MVL PerUsr,SL7 1TB
Health Informatics,Modernisation Programme,15/02/2023,Computer Software / License  Fees,Modernisation Programme,Softcat Plc,INVUK710115,"10,224.00",WinRmtDsktpSrvcsCAL All Language SubsVL MVL PerUsr,SL7 1TB
Health Informatics,Modernisation Programme,15/02/2023,Computer Software / License  Fees,Modernisation Programme,Softcat Plc,INVUK710115,"2,760.00",WinE5perUsrAddOntoE3perDvc All Language SubsVL MVL AddOn,SL7 1TB
Health Informatics,Modernisation Programme,15/02/2023,Computer Software / License  Fees,Modernisation Programme,Softcat Plc,INVUK710115,"1,490.40",PwrBIPro ShrdSvr All Language SubsVL MVL PerUsr,SL7 1TB
Health Informatics,Modernisation Programme,15/02/2023,Computer Software / License  Fees,Modernisation Programme,Softcat Plc,INVUK710115,129.35,Power Automate Sub Per User,SL7 1TB
Health Informatics,Modernisation Programme,15/02/2023,Computer Software / License  Fees,Modernisation Programme,Softcat Plc,INVUK710115,579.60,ProjectPlan1 ShrdSvr ALNG SubsVL MVL PerUsr,SL7 1TB
Health Informatics,Modernisation Programme,15/02/2023,Computer Software / License  Fees,Modernisation Programme,Softcat Plc,INVUK710115,"1,236.00",Project Plan3 Shared All Lng Subs VL MVL Per User,SL7 1TB
Health Informatics,Modernisation Programme,15/02/2023,Computer Software / License  Fees,Modernisation Programme,Softcat Plc,INVUK710115,123.60,VisioOnlnP2 ShrdSvr ALNG SubsVL MVL PerUsr,SL7 1TB
Health Informatics,Modernisation Programme,17/02/2023,Computer Maintenance,Modernisation Programme,Softcat Plc,INVUK712234,"101,403.08 ",Unified Enterprise Support-2022-23,SL7 1TB
Surgery & Anaesthetics,Surgical Divisional Support,22/02/2023,Contractual Clinical Services,Independent Sector,Spire Healthcare Ltd,RWYELDICF2223M07,"100,134.27 ",Provision of Elective Activity,RG1 9PL
Surgery & Anaesthetics,Surgical Divisional Support,22/02/2023,Contractual Clinical Services,Independent Sector,Spire Healthcare Ltd,RWYELDICF2223M08,"65,368.84 ",Provision of Elective Activity,RG1 9PL
CHS Facilities,L2 Facilities,10/02/2023,External Contracts : Laundry,Laundry,Synergy Health Managed Services Ltd,50001116,"111,575.30 ",LAUNDRY SERVICE CONTRACT ,WA9 5XH
CHS Facilities,L2 Facilities,01/03/2023,External Contracts : Laundry,Laundry,Synergy Health Managed Services Ltd,50001152,"118,980.12 ",LAUNDRY SERVICE CONTRACT ,WA9 5XH
Community Division,Community Therapies,24/02/2023,Patients Appliances : Purchase,Patient Appliances,Taycare Medical Ltd,21673,"35,475.01 ",supply of specialist orthotic products,LS12 6LL
Community Division,Community Therapies,01/03/2023,Patients Appliances : Purchase,Patient Appliances,Taycare Medical Ltd,21810,"46,472.31 ",supply of specialist orthotic products,LS12 6LL
Community Division,Community Therapies,01/03/2023,Patients Appliances : Purchase,Patient Appliances,Taycare Medical Ltd,21811,"44,774.89 ",supply of specialist orthotic products,LS12 6LL
Recharges,Recharges,10/02/2023,Healthcare From NHS Trusts,Recharges,The Leeds Teaching Hospitals NHS Trust,1410201731,"254,091.91 ",Various services provided by agreement as per West Yorkshire Association of Acute Trusts agreed methodology,LS9 7TF
Balance Sheet,Fixed Assets,03/02/2023,Additions - Assets Under Construction,Capital (Estates),The Together Group Construction Ltd,2933,"62,278.18 ",CHILD DEVELOPMENT UNIT - VARIATION WORKS UNDERTAKEN AS PER YOUR REVISED QUOTE INCLUDES ASBESTOS REMOVAL  FIRE COMPARTMENTATION,LS22 5DZ
CHS Estates,L2 Estates,15/02/2023,Med Surg Eqpt Mtce Contracts,Management Estates,Varian Medical Systems Uk Ltd,602216171,"36,060.00 ",M596 - 1 of 2 year Varian ARIA MedOnc (HMO0171) Essentials Service & Interoperability - Essentials.Agreement Commencing - 1st November 2022 - 31st October 2023,RH10 9RG
Corporate Services,Corporate Services,03/02/2023,External Consultancy Fees,Corporate Services,Yorkshire And Humber Ahsn Ltd,936,"36,000.00 ",Contribution to joint HCP & YHAHSN Innovation Programme for 2022/23,WF2 7BJ
Medical Division,Emergency Medicine,10/02/2023,B5 Agency Nursing,A&E Nursing,Your Nurse Ltd,EHCX37,"5,475.00 ",B5 Agency Nursing,EC3V 0EH
Medical Division,Medical Specialities,10/02/2023,B5 Agency Nursing,Cardiology,Your Nurse Ltd,EHCX37,"1,190.00 ",B5 Agency Nursing,EC3V 0EH
Corporate Services,RAFT,10/02/2023,B5 Agency Nursing,Central Operations Team CORP,Your Nurse Ltd,EHCX37,"3,137.50 ",B5 Agency Nursing,EC3V 0EH
Surgery & Anaesthetics,Critical Care,10/02/2023,B5 Agency Nursing,Critical Care,Your Nurse Ltd,EHCX37,"1,451.00 ",B5 Agency Nursing,EC3V 0EH
Medical Division,Medical Specialities,10/02/2023,B5 Agency Nursing,Gastroenterology,Your Nurse Ltd,EHCX37,"4,390.00 ",B5 Agency Nursing,EC3V 0EH
Medical Division,Acute Medical,10/02/2023,B5 Agency Nursing,General Medicine,Your Nurse Ltd,EHCX37,"1,792.50 ",B5 Agency Nursing,EC3V 0EH
Surgery & Anaesthetics,General Surgery,10/02/2023,B5 Agency Nursing,General Surgery,Your Nurse Ltd,EHCX37,"1,322.50 ",B5 Agency Nursing,EC3V 0EH
Medical Division,Acute Medical,10/02/2023,B5 Agency Nursing,Geriatric Medicine,Your Nurse Ltd,EHCX37,"5,215.00 ",B5 Agency Nursing,EC3V 0EH
Medical Division,Integrated Medical Specialities,10/02/2023,B5 Agency Nursing,Ims Stroke / Rehabilitation,Your Nurse Ltd,EHCX37,"1,785.00 ",B5 Agency Nursing,EC3V 0EH
Medical Division,Medical Specialities,10/02/2023,B5 Agency Nursing,Respiratory,Your Nurse Ltd,EHCX37,595.00 ,B5 Agency Nursing,EC3V 0EH
Surgery & Anaesthetics,Orthopaedics,10/02/2023,B5 Agency Nursing,Trauma & Orthopaedics,Your Nurse Ltd,EHCX37,"3,770.00 ",B5 Agency Nursing,EC3V 0EH
Medical Division,Emergency Medicine,17/02/2023,B5 Agency Nursing,A&E Nursing,Your Nurse Ltd,EHCX38,"2,955.00 ",B5 Agency Nursing,EC3V 0EH
Corporate Services,RAFT,17/02/2023,B5 Agency Nursing,Central Operations Team CORP,Your Nurse Ltd,EHCX38,"2,467.50 ",B5 Agency Nursing,EC3V 0EH
Surgery & Anaesthetics,Critical Care,17/02/2023,B5 Agency Nursing,Critical Care,Your Nurse Ltd,EHCX38,"1,442.00 ",B5 Agency Nursing,EC3V 0EH
Medical Division,Medical Specialities,17/02/2023,B5 Agency Nursing,Gastroenterology,Your Nurse Ltd,EHCX38,"5,025.00 ",B5 Agency Nursing,EC3V 0EH
Medical Division,Acute Medical,17/02/2023,B5 Agency Nursing,General Medicine,Your Nurse Ltd,EHCX38,"2,980.00 ",B5 Agency Nursing,EC3V 0EH
Surgery & Anaesthetics,General Surgery,17/02/2023,B5 Agency Nursing,General Surgery,Your Nurse Ltd,EHCX38,"1,867.50 ",B5 Agency Nursing,EC3V 0EH
Medical Division,Acute Medical,17/02/2023,B5 Agency Nursing,Geriatric Medicine,Your Nurse Ltd,EHCX38,"9,324.16 ",B5 Agency Nursing,EC3V 0EH
Families & Specialist Services,Childrens,17/02/2023,B5 Agency Nursing,Inpatients Paediatrics,Your Nurse Ltd,EHCX38,730.00 ,B5 Agency Nursing,EC3V 0EH
Surgery & Anaesthetics,Orthopaedics,17/02/2023,B5 Agency Nursing,Trauma & Orthopaedics,Your Nurse Ltd,EHCX38,"1,265.00 ",B5 Agency Nursing,EC3V 0EH
Medical Division,Emergency Medicine,03/02/2023,B5 Agency Nursing,A&E Nursing,Your Nurse Ltd,YNLX58,15905.37,B5 Agency Nursing,EC3V 0EH
Corporate Services,RAFT,03/02/2023,B5 Agency Nursing,Central Operations Team CORP,Your Nurse Ltd,YNLX58,5737.01,B5 Agency Nursing,EC3V 0EH
Surgery & Anaesthetics,Critical Care,03/02/2023,B5 Agency Nursing,Critical Care,Your Nurse Ltd,YNLX58,3577.34,B5 Agency Nursing,EC3V 0EH
Surgery & Anaesthetics,Head & Neck,03/02/2023,B5 Agency Nursing,Ent,Your Nurse Ltd,YNLX58,1239.17,B5 Agency Nursing,EC3V 0EH
Medical Division,Medical Specialities,03/02/2023,B5 Agency Nursing,Gastroenterology,Your Nurse Ltd,YNLX58,3721.37,B5 Agency Nursing,EC3V 0EH
Medical Division,Acute Medical,03/02/2023,B5 Agency Nursing,General Medicine,Your Nurse Ltd,YNLX58,15372.18,B5 Agency Nursing,EC3V 0EH
Surgery & Anaesthetics,General Surgery,03/02/2023,B5 Agency Nursing,General Surgery,Your Nurse Ltd,YNLX58,9679.66,B5 Agency Nursing,EC3V 0EH
Medical Division,Acute Medical,03/02/2023,B5 Agency Nursing,Geriatric Medicine,Your Nurse Ltd,YNLX58,10161.79,B5 Agency Nursing,EC3V 0EH
Families & Specialist Services,Womens,03/02/2023,B5 Agency Nursing,Gynaecology,Your Nurse Ltd,YNLX58,706.19,B5 Agency Nursing,EC3V 0EH
Medical Division,Integrated Medical Specialities,03/02/2023,B5 Agency Nursing,Ims Stroke / Rehabilitation,Your Nurse Ltd,YNLX58,7855.61,B5 Agency Nursing,EC3V 0EH
Families & Specialist Services,Childrens,03/02/2023,B5 Agency Nursing,Inpatients Paediatrics,Your Nurse Ltd,YNLX58,1503.77,B5 Agency Nursing,EC3V 0EH
Medical Division,Integrated Medical Specialities,03/02/2023,B5 Agency Nursing,Medical Oncology,Your Nurse Ltd,YNLX58,3700.04,B5 Agency Nursing,EC3V 0EH
Surgery & Anaesthetics,Operating Services,03/02/2023,B5 Agency Nursing,Operating Services,Your Nurse Ltd,YNLX58,7112.8,B5 Agency Nursing,EC3V 0EH
Medical Division,Medical Specialities,03/02/2023,B5 Agency Nursing,Respiratory,Your Nurse Ltd,YNLX58,6243.01,B5 Agency Nursing,EC3V 0EH
Surgery & Anaesthetics,Orthopaedics,03/02/2023,B5 Agency Nursing,Trauma & Orthopaedics,Your Nurse Ltd,YNLX58,6223.41,B5 Agency Nursing,EC3V 0EH
Medical Division,Emergency Medicine,10/02/2023,B5 Agency Nursing,A&E Nursing,Your Nurse Ltd,YNLX59,13583.83,B5 Agency Nursing,EC3V 0EH
Medical Division,Medical Specialities,10/02/2023,B5 Agency Nursing,Cardiology,Your Nurse Ltd,YNLX59,2901.29,B5 Agency Nursing,EC3V 0EH
Corporate Services,RAFT,10/02/2023,B5 Agency Nursing,Central Operations Team CORP,Your Nurse Ltd,YNLX59,8760.44,B5 Agency Nursing,EC3V 0EH
Surgery & Anaesthetics,Critical Care,10/02/2023,B5 Agency Nursing,Critical Care,Your Nurse Ltd,YNLX59,2834.3,B5 Agency Nursing,EC3V 0EH
Medical Division,Medical Specialities,10/02/2023,B5 Agency Nursing,Gastroenterology,Your Nurse Ltd,YNLX59,9883.48,B5 Agency Nursing,EC3V 0EH
Medical Division,Acute Medical,10/02/2023,B5 Agency Nursing,General Medicine,Your Nurse Ltd,YNLX59,12172.48,B5 Agency Nursing,EC3V 0EH
Surgery & Anaesthetics,General Surgery,10/02/2023,B5 Agency Nursing,General Surgery,Your Nurse Ltd,YNLX59,14566.29,B5 Agency Nursing,EC3V 0EH
Medical Division,Acute Medical,10/02/2023,B5 Agency Nursing,Geriatric Medicine,Your Nurse Ltd,YNLX59,20251.75,B5 Agency Nursing,EC3V 0EH
Medical Division,Integrated Medical Specialities,10/02/2023,B5 Agency Nursing,Ims Stroke / Rehabilitation,Your Nurse Ltd,YNLX59,16491.13,B5 Agency Nursing,EC3V 0EH
Families & Specialist Services,Childrens,10/02/2023,B5 Agency Nursing,Inpatients Paediatrics,Your Nurse Ltd,YNLX59,706.19,B5 Agency Nursing,EC3V 0EH
Medical Division,Integrated Medical Specialities,10/02/2023,B5 Agency Nursing,Medical Oncology,Your Nurse Ltd,YNLX59,3957.72,B5 Agency Nursing,EC3V 0EH
Surgery & Anaesthetics,Operating Services,10/02/2023,B5 Agency Nursing,Operating Services,Your Nurse Ltd,YNLX59,9499.76,B5 Agency Nursing,EC3V 0EH
Medical Division,Medical Specialities,10/02/2023,B5 Agency Nursing,Respiratory,Your Nurse Ltd,YNLX59,2955.33,B5 Agency Nursing,EC3V 0EH
Surgery & Anaesthetics,Orthopaedics,10/02/2023,B5 Agency Nursing,Trauma & Orthopaedics,Your Nurse Ltd,YNLX59,5025.54,B5 Agency Nursing,EC3V 0EH
Medical Division,Emergency Medicine,10/02/2023,B5 Agency Nursing,A&E Nursing,Your Nurse Ltd,YNLX60,20225.18,B5 Agency Nursing,EC3V 0EH
Medical Division,Medical Specialities,10/02/2023,B5 Agency Nursing,Cardiology,Your Nurse Ltd,YNLX60,3642.43,B5 Agency Nursing,EC3V 0EH
Corporate Services,RAFT,10/02/2023,B5 Agency Nursing,Central Operations Team CORP,Your Nurse Ltd,YNLX60,12339.38,B5 Agency Nursing,EC3V 0EH
Surgery & Anaesthetics,Critical Care,10/02/2023,B5 Agency Nursing,Critical Care,Your Nurse Ltd,YNLX60,2171.24,B5 Agency Nursing,EC3V 0EH
Medical Division,Medical Specialities,10/02/2023,B5 Agency Nursing,Gastroenterology,Your Nurse Ltd,YNLX60,4382.22,B5 Agency Nursing,EC3V 0EH
Medical Division,Acute Medical,10/02/2023,B5 Agency Nursing,General Medicine,Your Nurse Ltd,YNLX60,15408.21,B5 Agency Nursing,EC3V 0EH
Surgery & Anaesthetics,General Surgery,10/02/2023,B5 Agency Nursing,General Surgery,Your Nurse Ltd,YNLX60,10252.74,B5 Agency Nursing,EC3V 0EH
Medical Division,Acute Medical,10/02/2023,B5 Agency Nursing,Geriatric Medicine,Your Nurse Ltd,YNLX60,20281.23,B5 Agency Nursing,EC3V 0EH
Medical Division,Integrated Medical Specialities,10/02/2023,B5 Agency Nursing,Ims Stroke / Rehabilitation,Your Nurse Ltd,YNLX60,12323.27,B5 Agency Nursing,EC3V 0EH
Families & Specialist Services,Childrens,10/02/2023,B5 Agency Nursing,Inpatients Paediatrics,Your Nurse Ltd,YNLX60,6488.37,B5 Agency Nursing,EC3V 0EH
Medical Division,Integrated Medical Specialities,10/02/2023,B5 Agency Nursing,Medical Oncology,Your Nurse Ltd,YNLX60,1181.01,B5 Agency Nursing,EC3V 0EH
Surgery & Anaesthetics,Operating Services,10/02/2023,B5 Agency Nursing,Operating Services,Your Nurse Ltd,YNLX60,17386.14,B5 Agency Nursing,EC3V 0EH
Medical Division,Medical Specialities,10/02/2023,B5 Agency Nursing,Respiratory,Your Nurse Ltd,YNLX60,5689.48,B5 Agency Nursing,EC3V 0EH
Surgery & Anaesthetics,Orthopaedics,10/02/2023,B5 Agency Nursing,Trauma & Orthopaedics,Your Nurse Ltd,YNLX60,10675.85,B5 Agency Nursing,EC3V 0EH
Medical Division,Emergency Medicine,17/02/2023,B5 Agency Nursing,A&E Nursing,Your Nurse Ltd,YNLX61,"16,186.04 ",B5 Agency Nursing,EC3V 0EH
Medical Division,Medical Specialities,17/02/2023,B5 Agency Nursing,Cardiology,Your Nurse Ltd,YNLX61,"3,726.56 ",B5 Agency Nursing,EC3V 0EH
Corporate Services,RAFT,17/02/2023,B5 Agency Nursing,Central Operations Team CORP,Your Nurse Ltd,YNLX61,"10,620.91 ",B5 Agency Nursing,EC3V 0EH
Surgery & Anaesthetics,Critical Care,17/02/2023,B5 Agency Nursing,Critical Care,Your Nurse Ltd,YNLX61,"6,408.38 ",B5 Agency Nursing,EC3V 0EH
Surgery & Anaesthetics,Head & Neck,17/02/2023,B5 Agency Nursing,Ent,Your Nurse Ltd,YNLX61,609.04 ,B5 Agency Nursing,EC3V 0EH
Medical Division,Medical Specialities,17/02/2023,B5 Agency Nursing,Gastroenterology,Your Nurse Ltd,YNLX61,"8,580.23 ",B5 Agency Nursing,EC3V 0EH
Medical Division,Acute Medical,17/02/2023,B5 Agency Nursing,General Medicine,Your Nurse Ltd,YNLX61,"14,395.34 ",B5 Agency Nursing,EC3V 0EH
Surgery & Anaesthetics,General Surgery,17/02/2023,B5 Agency Nursing,General Surgery,Your Nurse Ltd,YNLX61,"10,142.80 ",B5 Agency Nursing,EC3V 0EH
Medical Division,Acute Medical,17/02/2023,B5 Agency Nursing,Geriatric Medicine,Your Nurse Ltd,YNLX61,"14,356.16 ",B5 Agency Nursing,EC3V 0EH
Medical Division,Integrated Medical Specialities,17/02/2023,B5 Agency Nursing,Ims Stroke / Rehabilitation,Your Nurse Ltd,YNLX61,"9,253.18 ",B5 Agency Nursing,EC3V 0EH
Families & Specialist Services,Childrens,17/02/2023,B5 Agency Nursing,Inpatients Paediatrics,Your Nurse Ltd,YNLX61,"2,118.57 ",B5 Agency Nursing,EC3V 0EH
Medical Division,Integrated Medical Specialities,17/02/2023,B5 Agency Nursing,Medical Oncology,Your Nurse Ltd,YNLX61,"1,656.89 ",B5 Agency Nursing,EC3V 0EH
Surgery & Anaesthetics,Operating Services,17/02/2023,B5 Agency Nursing,Operating Services,Your Nurse Ltd,YNLX61,"10,487.36 ",B5 Agency Nursing,EC3V 0EH
Corporate Services,Quality,17/02/2023,B5 Agency Nursing,Quality,Your Nurse Ltd,YNLX61,686.55 ,B5 Agency Nursing,EC3V 0EH
Medical Division,Medical Specialities,17/02/2023,B5 Agency Nursing,Respiratory,Your Nurse Ltd,YNLX61,"5,963.92 ",B5 Agency Nursing,EC3V 0EH
Surgery & Anaesthetics,Orthopaedics,17/02/2023,B5 Agency Nursing,Trauma & Orthopaedics,Your Nurse Ltd,YNLX61,"3,522.15 ",B5 Agency Nursing,EC3V 0EH
Medical Division,Emergency Medicine,24/02/2023,B5 Agency Nursing,A&E Nursing,Your Nurse Ltd,YNLX62,20380.71,B5 Agency Nursing,EC3V 0EH
Medical Division,Medical Specialities,24/02/2023,B5 Agency Nursing,Cardiology,Your Nurse Ltd,YNLX62,3457.81,B5 Agency Nursing,EC3V 0EH
Corporate Services,RAFT,24/02/2023,B5 Agency Nursing,Central Operations Team CORP,Your Nurse Ltd,YNLX62,6834.59,B5 Agency Nursing,EC3V 0EH
Surgery & Anaesthetics,Critical Care,24/02/2023,B5 Agency Nursing,Critical Care,Your Nurse Ltd,YNLX62,2877.43,B5 Agency Nursing,EC3V 0EH
Surgery & Anaesthetics,Head & Neck,24/02/2023,B5 Agency Nursing,Ent,Your Nurse Ltd,YNLX62,601.27,B5 Agency Nursing,EC3V 0EH
Medical Division,Medical Specialities,24/02/2023,B5 Agency Nursing,Gastroenterology,Your Nurse Ltd,YNLX62,5469.27,B5 Agency Nursing,EC3V 0EH
Medical Division,Acute Medical,24/02/2023,B5 Agency Nursing,General Medicine,Your Nurse Ltd,YNLX62,13941.05,B5 Agency Nursing,EC3V 0EH
Surgery & Anaesthetics,General Surgery,24/02/2023,B5 Agency Nursing,General Surgery,Your Nurse Ltd,YNLX62,9543.93,B5 Agency Nursing,EC3V 0EH
Medical Division,Acute Medical,24/02/2023,B5 Agency Nursing,Geriatric Medicine,Your Nurse Ltd,YNLX62,15035.13,B5 Agency Nursing,EC3V 0EH
Medical Division,Integrated Medical Specialities,24/02/2023,B5 Agency Nursing,Ims Stroke / Rehabilitation,Your Nurse Ltd,YNLX62,8433.31,B5 Agency Nursing,EC3V 0EH
Families & Specialist Services,Childrens,24/02/2023,B5 Agency Nursing,Inpatients Paediatrics,Your Nurse Ltd,YNLX62,5756.81,B5 Agency Nursing,EC3V 0EH
Medical Division,Integrated Medical Specialities,24/02/2023,B5 Agency Nursing,Medical Oncology,Your Nurse Ltd,YNLX62,1185.2,B5 Agency Nursing,EC3V 0EH
Surgery & Anaesthetics,Operating Services,24/02/2023,B5 Agency Nursing,Operating Services,Your Nurse Ltd,YNLX62,22292.2,B5 Agency Nursing,EC3V 0EH
Medical Division,Medical Specialities,24/02/2023,B5 Agency Nursing,Respiratory,Your Nurse Ltd,YNLX62,10266.94,B5 Agency Nursing,EC3V 0EH
Surgery & Anaesthetics,Orthopaedics,24/02/2023,B5 Agency Nursing,Trauma & Orthopaedics,Your Nurse Ltd,YNLX62,4178.87,B5 Agency Nursing,EC3V 0EH
Balance Sheet,Fixed Assets,22/02/2023,Additions - Assets Under Construction,Capital (Medicine & Elderly),Zoll Medical U K Ltd,136850,"171,161.28 ",BLS  ZOLL AED 3  ENGLISH UK ERC,WA7 1SY_01
Balance Sheet,Fixed Assets,22/02/2023,Additions - Assets Under Construction,Capital (Medicine & Elderly),Zoll Medical U K Ltd,137107,"575,802.30 ",Surepower Lithium Re-chargeable Battery Series ® PLUS Defibrillator plus extention pack Defibs - R SERIES Surepower Charging Station (4 Bay Capacity),WA7 1SY_01
